[Event "Slovakia Open 2022"]
[Site "Bratislava"]
[Date "2022.09.30"]
[Round "2.12"]
[White "Djubek, Boris"]
[Black "Nestorenko, Dmitry"]
[Result "1/2-1/2"]
[ECO "B40"]
[WhiteElo "1995"]
[BlackElo "2168"]
[Annotator "TA"]
[PlyCount "92"]
[EventDate "2022.09.30"]
[EventCountry "SVK"]
[SourceTitle "playchess.com"]
[Source "ChessBase"]
[SourceQuality "1"]
[TimeControl "2700+10"]

{[%evp 13,92,48,40,44,43,19,21,29,26,20,24,15,66,63,73,42,41,-2,14,4,22,0,23,12,20,0,10,-2,0,0,0,0,56,45,56,0,0,0,8,8,9,0,0,0,0,0,0,0,0,0,0,0,0,0,0,0,0,0,0,0,0,-59,0,-135,-135,-100,0,0,0,0,0,0,0,0,0,0,0,0,0,0,0]} 1. d4 {[%emt 0:00:05]} e6 {[%emt 0:00:01]} 2. Nf3 {[%emt 0:00:23]} c5 {[%emt 0:00:02]} 3. e4 {[%emt 0:00:36][%cal Be2e4,Be4e5][%mdl 32]} cxd4 {[%emt 0:00:03]} 4. Nxd4 {[%emt 0:00:09]} Nf6 {[%emt 0:00:06]} 5. Nc3 {[%emt 0:00:52]} Bb4 {[%emt 0:00:20]} 6. Bd3 {[%emt 0:00:51]} Nc6 {[%emt 0:00:23]} 7. Nxc6 {[%emt 0:00:43]} dxc6 {[%emt 0:00:06]} 8. e5 {[%emt 0:03:44] B40: Sicilian: 2...e6, Unusual lines.} Nd5 {[%emt 0:00:08]} 9. Bd2 {[%emt 0:01:14] [#]} Qc7 $146 {[%emt 0:02:18]} ({Predecessor:} 9... Qa5 10. Ne4 Bxd2+ 11. Qxd2 Qxd2+ 12. Kxd2 Nf4 13. g3 Nxd3 14. cxd3 Ke7 15. d4 Bd7 {1-0 (34) Escobar Medina,A (2270)-Hernandez Pinzon,H (2017) Medellin 2019}) 10. Nxd5 {[%emt 0:02:43]} Bxd2+ {[%emt 0:00:03]} 11. Qxd2 {[%emt 0:00:17]} cxd5 {[%emt 0:00:03]} 12. Qg5 {[%emt 0:00:50]} g6 {[%emt 0:01:35]} (12... O-O $11) 13. Qf6 $14 {[%emt 0:02:01]} Rg8 {[%emt 0:00:04]} 14. O-O-O {[%emt 0:01:03] White is more active.} Qe7 {[%emt 0:01:26]} 15. Qxe7+ {[%emt 0:02:10]} Kxe7 {[%emt 0:00:02]} 16. h4 {[%emt 0:00:14]} h6 {[%emt 0:00:54]} 17. f4 {[%emt 0:00:41]} Bd7 {[%emt 0:00:06]} 18. g4 {[%emt 0:00:43]} a6 {[%emt 0:03:17]} 19. a3 {[%emt 0:01:55]} Rac8 {[%emt 0:00:55]} 20. Be2 {[%emt 0:00:38]} Ba4 {[%emt 0:00:34]} 21. Rd2 {[%emt 0:00:56]} Rc5 {[%emt 0:00:15]} 22. Rh3 {[%emt 0:01:40]} f6 {[%emt 0:03:02]} (22... Bb5 $11) 23. b3 {[%emt 0:02:48]} Bb5 {[%emt 0:00:03]} 24. a4 {[%emt 0:02:13]} (24. Bxb5 $14 axb5 25. exf6+ Kxf6 26. Re3) 24... Bxe2 $1 $11 {[%emt 0:00:49]} 25. Rxe2 {[%emt 0:01:44]} fxe5 {[%emt 0:01:35]} 26. Rxe5 {[%emt 0:00:39][%mdl 4096] Endgame KRR-KRR} Rgc8 {[%emt 0:00:01]} 27. Re2 {[%emt 0:02:14]} Rf8 {[%emt 0:01:10]} 28. h5 {[%emt 0:01:36]} Rxf4 {[%emt 0:00:56] [#] Strongly threatening ...g5.} 29. hxg6 {[%emt 0:00:59]} Rxg4 {[%emt 0:00:02]} 30. Rxh6 {[%emt 0:00:11]} Rc6 {[%emt 0:00:01]} 31. Rf2 {[%emt 0:02:20]} Kd6 {[%emt 0:00:29]} 32. Rh7 {[%emt 0:02:35]} Rxg6 {[%emt 0:00:10]} 33. Rxb7 {[%emt 0:00:06]} Kc5 {[%emt 0:02:42]} 34. Kd2 {[%emt 0:01:55]} e5 {[%emt 0:00:56]} 35. Re7 {[%emt 0:00:47]} Kd4 {[%emt 0:00:32]} 36. Re2 {[%emt 0:01:21]} e4 {[%emt 0:00:20]} 37. c4 {[%emt 0:00:40]} ({Only move:} 37. c3+ $1 $11 Rxc3 38. R2xe4+ dxe4 39. Rd7+ Ke5 40. Kxc3) 37... Rce6 {[%emt 0:02:27]} (37... Rge6 $1 $15 38. Rd7 Rcd6 39. cxd5 Kxd5) 38. Rxe6 {[%emt 0:00:48]} (38. Rd7 $11 {remains equal.} Rd6 39. Rxd6 Rxd6 40. cxd5) 38... Rxe6 $17 {[%emt 0:00:01]} 39. cxd5 {[%emt 0:00:15]} Kxd5 $11 {[%emt 0:00:04] KR-KR} (39... e3+ $17 40. Kc1 Rb6) 40. Rh2 {[%emt 0:00:59] The position is equal.} Kd4 {[%emt 0:02:43]} 41. Rh8 {[%emt 0:00:51]} Rd6 {[%emt 0:05:39]} 42. Re8 {[%emt 0:00:30]} Kc5+ {[%emt 0:01:59]} 43. Kc2 {[%emt 0:01:09]} Kd4 {[%emt 0:00:59]} 44. Kd2 {[%emt 0:00:04]} Rh6 {[%emt 0:03:11]} 45. Rd8+ {[%emt 0:00:11]} Kc5 {[%emt 0:00:02]} 46. Rc8+ {[%emt 0:00:17]} Kd4 {[%emt 0:01:45] Weighted Error Value: White=0.15 (very precise) /Black=0.12 (very precise)} 1/2-1/2

[Event "Slovakia Open 2022"]
[Site "Bratislava"]
[Date "2022.09.30"]
[Round "2.13"]
[White "Slovak, Kilian"]
[Black "Mandak, Miroslav"]
[Result "1-0"]
[ECO "B12"]
[WhiteElo "2278"]
[BlackElo "1864"]
[Annotator "TA"]
[PlyCount "82"]
[EventDate "2022.09.30"]
[EventCountry "SVK"]
[SourceTitle "playchess.com"]
[Source "ChessBase"]
[SourceQuality "1"]
[TimeControl "2700+10"]

{[%evp 9,82,31,26,0,16,10,16,20,43,-5,-4,-12,14,-20,10,-7,26,10,0,-4,69,80,139,40,58,45,42,0,36,37,45,42,52,12,14,24,31,0,75,58,164,112,291,282,422,350,299,299,1962,438,560,617,1873,919,936,437,784,760,726,705,621,617,1756,925,1332,1296,1097,668,731,425,300,325,374,0,477]} 1. e4 {[%emt 0:00:05]} c6 {[%emt 0:00:02]} 2. d4 {[%emt 0:00:23]} d5 {[%emt 0:00:02]} 3. e5 {[%emt 0:00:02]} c5 {[%emt 0:00:02]} 4. Nf3 {[%emt 0:00:09]} Bg4 {[%emt 0:00:50]} 5. dxc5 {[%emt 0:01:49]} e6 {[%emt 0:00:17]} 6. Be3 {[%emt 0:01:06] B12: Caro-Kann: Advance Variation.} Nc6 {[%emt 0:03:49]} 7. c3 {[%emt 0:00:09]} Bxf3 {[%emt 0:00:32]} (7... a6 {is interesting.} 8. Qb3 Bxf3 9. Qxb7 Nge7) 8. Qxf3 {[%emt 0:02:06]} Nxe5 {[%emt 0:00:08]} 9. Qg3 {[%emt 0:01:21]} (9. Bb5+ $14 Nc6 10. O-O) 9... Nc6 $11 {[%emt 0:00:57]} 10. Nd2 {[%emt 0:01:23]} Nf6 {[%emt 0:02:33]} 11. b4 {[%emt 0:07:01]} a6 {[%emt 0:02:42] [#]} 12. Bd3 $146 {[%emt 0:06:51]} ({Predecessor:} 12. Be2 g6 13. h4 h5 14. Bf4 Bg7 15. Bd6 Ng4 16. Rc1 Nh6 17. Bd3 Ne7 18. Bc2 {0-1 (46) Jentsch,D (2135)-Krueger,E (2210) Halle 2007}) 12... d4 {[%emt 0:01:36]} 13. cxd4 {[%emt 0:02:31] next a3 is good for White.} Nxb4 {[%emt 0:00:39] Pair of Knights!} 14. Bb1 {[%emt 0:00:29]} Nbd5 {[%emt 0:01:22]} ({Black should play} 14... Nc6 $11) 15. O-O $14 {[%emt 0:01:13]} Qc7 {[%emt 0:02:29]} ({Black should try} 15... Qb8) 16. Qf3 {[%emt 0:01:11]} (16. Qxc7 $16 Nxc7 17. Bd3) 16... Be7 $1 {[%emt 0:00:52]} 17. Ne4 {[%emt 0:01:16]} O-O {[%emt 0:02:06]} 18. Bd3 {[%emt 0:01:06]} Rad8 {[%emt 0:03:56]} 19. Rab1 {[%emt 0:00:24]} Nxe4 {[%emt 0:03:33]} 20. Bxe4 {[%emt 0:00:07]} f5 {[%emt 0:04:19]} 21. Bc2 {[%emt 0:03:08]} (21. Bxd5 $5 Rxd5 22. Rb6 $14) 21... b6 {[%emt 0:01:40]} 22. Bb3 {[%emt 0:04:50]} bxc5 {[%emt 0:00:34]} 23. Rfc1 {[%emt 0:02:03][%cal Rd4c5]} Bf6 {[%emt 0:07:55]} (23... Nxe3 $11 {keeps the balance.} 24. Qxe3 (24. Bxe6+ Kh8 $11) 24... Kh8) 24. dxc5 $16 {[%emt 0:01:13][%cal Bd4c5,Bc5c6][%mdl 32]} Qe5 {[%emt 0:01:53] White stays focused until the end.} (24... Nxe3 $14 25. Qxe3 (25. Bxe6+ Kh8 $14) 25... Be5) 25. Bxd5 {[%emt 0:06:06]} ({Better is} 25. Bd2 $18) 25... Rxd5 $2 {[%emt 0:01:39]} (25... Qxd5 $16 26. Qxd5 exd5) 26. c6 $18 {[%emt 0:00:16]} Qc7 {[%emt 0:00:35]} (26... g5 $142 27. c7 Rc8) 27. Bf4 {[%emt 0:00:52]} Be5 {[%emt 0:00:54]} 28. Rb7 {[%emt 0:00:04]} Qc8 {[%emt 0:00:22]} (28... Qa5 29. h4 Rdd8) 29. h4 {[%emt 0:00:31]} (29. Bxe5 $142 Rxe5 30. Qc3 Qxb7 31. cxb7) 29... Bxf4 {[%emt 0:01:19]} 30. Qxf4 {[%emt 0:00:01]} Rdd8 {[%emt 0:00:08]} 31. h5 {[%emt 0:00:22]} (31. Qe5 $142 Rf7 32. c7) 31... Rf7 {[%emt 0:00:08]} 32. Qb4 {[%emt 0:00:11]} (32. c7 $142 Re8 33. Rb8 Rxc7 34. Rxc8 Rcxc8 35. Re1) 32... a5 {[%emt 0:00:06]} (32... Rxb7 $142 33. Qxb7 Re8) 33. Qb6 {[%emt 0:00:07]} Rxb7 {[%emt 0:00:12]} 34. Qxb7 {[%emt 0:00:03][%mdl 4096] Endgame KQR-KQR} Re8 {[%emt 0:00:07]} 35. a4 {[%emt 0:00:19]} Kf8 {[%emt 0:00:02]} 36. Qa7 {[%emt 0:00:05]} Qa8 {[%emt 0:00:22]} 37. Qc5+ {[%emt 0:00:01]} Kf7 {[%emt 0:00:06]} 38. Rb1 {[%emt 0:00:21] [#] Hoping for Rb7+.} Re7 {[%emt 0:00:08] Inhibits Rb7.} 39. Rb5 {[%emt 0:00:13] aiming for Qd6.} Rc7 {[%emt 0:00:15]} 40. Rb6 {[%emt 0:00:07] Black must now prevent Qd6.} Qd8 {[%emt 0:00:23] [#] Prevents Qd6.} 41. Kh2 $2 {[%emt 0:00:11]} (41. g3 $1 $18) 41... Qc8 $2 {[%emt 0:00:26][%mdl 8192] Prevents Rb7.  Weighted Error Value: White=0.92/Black=0.41} (41... Qh4+ $1 $11 {and Black stays safe.} 42. Kg1 Qd8) 1-0

[Event "Slovakia Open 2022"]
[Site "Bratislava"]
[Date "2022.09.30"]
[Round "2.14"]
[White "Hnatyshyn, Anastasiia"]
[Black "Pasti, Aron"]
[Result "0-1"]
[ECO "B44"]
[WhiteElo "2087"]
[BlackElo "2350"]
[Annotator "TA"]
[PlyCount "102"]
[EventDate "2022.09.30"]
[EventCountry "SVK"]
[SourceTitle "playchess.com"]
[Source "ChessBase"]
[SourceQuality "1"]
[TimeControl "2700+10"]

{[%evp 15,102,-27,-11,-16,-12,-23,-27,-27,-21,-50,-26,-45,0,0,-9,-44,-34,-66,-58,-50,0,-70,-63,-62,0,0,0,0,0,-16,-9,-12,-9,-6,-8,-13,-14,-33,-44,-50,-58,-58,-54,-79,-81,-98,-72,-109,-109,-174,-172,-148,-141,-276,-276,-363,-363,-363,-83,-83,-83,-83,-83,-2636,-2939,-29972,-29972,-29963,-29967,-29989,-29990,-29990,-29988,-29989,-29990,-29992,-29989,-29990,-29991,-29991,-29992,-29992,-29993,-29993,-29993,-29997,-29998,-29998,-29999]} 1. e4 {[%emt 0:00:04]} c5 {[%emt 0:00:01]} 2. Nf3 {[%emt 0:00:03]} e6 {[%emt 0:00:02]} 3. d4 {[%emt 0:00:03]} cxd4 {[%emt 0:00:02]} 4. Nxd4 {[%emt 0:00:03]} Nc6 {[%emt 0:00:11]} 5. Be3 {[%emt 0:00:28]} Nf6 {[%emt 0:00:14]} 6. Nxc6 {[%emt 0:00:44]} bxc6 {[%emt 0:00:02][%cal Bb7c6,Bc6d5,Bd5d4][%mdl 32]} 7. Bd3 {[%emt 0:00:26]} d5 {[%emt 0:00:03]} 8. exd5 {[%emt 0:00:25]} cxd5 {[%emt 0:00:05]} 9. O-O {[%emt 0:00:19] B44: Sicilian: Taimanov: 5 Nb5.} Bd6 {[%emt 0:00:01]} 10. Nd2 {[%emt 0:00:33]} O-O {[%emt 0:00:09]} 11. c4 {[%emt 0:01:36][%cal Bc2c4,Bc4c5][%mdl 32] Black has an edge.} Bb7 {[%emt 0:00:25] [#]} 12. c5 $146 {[%emt 0:00:58]} ({Predecessor:} 12. Bg5 dxc4 13. Nxc4 Bxh2+ 14. Kxh2 Qd5 15. Qf3 Qxg5 16. Qg3 Qxg3+ 17. Kxg3 Rfd8 18. Be2 {½-½ (60) Becker,N (2070)-Herm,M (2034) Playchess.com INT 2020}) 12... Bc7 {[%emt 0:01:40]} (12... d4 $5 {[%cal Rd4e3]} 13. cxd6 dxe3 $11) 13. Rc1 {[%emt 0:01:55]} d4 {[%emt 0:00:19]} 14. Bg5 {[%emt 0:00:11] Threatens to win with c6.} Qd5 {[%emt 0:04:41][%csl Gb7,LRa2,LRg2,LRg5][%cal Rd5g2]} 15. Nf3 {[%emt 0:01:21]} (15. c6 $5 Bxc6 16. Rxc6 Qxc6 17. Bxf6 gxf6 18. Qg4+ Kh8 19. Qh4 $11) 15... Ng4 $1 {[%emt 0:01:51] ...h6 is the strong threat.} 16. c6 {[%emt 0:06:25]} Bxc6 {[%emt 0:01:06] Black is more active.} 17. Bxh7+ $1 {[%emt 0:02:36]} Kh8 {[%emt 0:01:34]} (17... Kxh7 $15 18. Qc2+ Kg8 19. Qxc6 {[#]} Bxh2+ $1 20. Nxh2 Qxg5) 18. Qxd4 {[%emt 0:04:23]} (18. Bd3 $11) 18... Bxh2+ $15 {[%emt 0:01:25]} 19. Kh1 {[%emt 0:00:02] [#]} Qxf3 {[%emt 0:00:28]} 20. Rxc6 $1 $11 {[%emt 0:00:39]} Be5 {[%emt 0:04:30] The board is on fire.} 21. gxf3 {[%emt 0:02:11]} Bxd4 {[%emt 0:00:02]} 22. fxg4 {[%emt 0:00:08]} Kxh7 {[%emt 0:00:02]} 23. b3 {[%emt 0:00:29]} Kg6 $36 {[%emt 0:00:34][%mdl 2048] White is under pressure.} 24. Bf4 {[%emt 0:01:04]} Rac8 {[%emt 0:00:28]} 25. Rd6 {[%emt 0:00:43]} Bb6 {[%emt 0:01:18]} 26. Rd2 {[%emt 0:00:45] Inhibits Rc2.} f6 {[%emt 0:00:13]} 27. Kg2 {[%emt 0:00:58]} e5 {[%emt 0:00:02]} 28. Bg3 {[%emt 0:01:00]} Rf7 {[%emt 0:00:52]} 29. Rh1 {[%emt 0:01:01]} Rfc7 {[%emt 0:00:18]} 30. Rhd1 {[%emt 0:03:29]} Rc2 {[%emt 0:03:33]} 31. a4 {[%emt 0:00:26]} Kg5 {[%emt 0:00:10]} 32. b4 {[%emt 0:02:00]} (32. f3 $17 {was worth a try.}) 32... Rxd2 {[%emt 0:00:31]} 33. Rxd2 {[%emt 0:00:03]} Kxg4 $19 {[%emt 0:00:09][%mdl 4096] Endgame KRB-KRB} 34. Rd7 {[%emt 0:00:33]} (34. a5 $17 Bd4 35. f3+ Kf5 36. Bf2) 34... g5 {[%emt 0:00:02] Hoping for ...Rc2.} 35. a5 {[%emt 0:01:08]} Bd4 {[%emt 0:00:11]} 36. b5 {[%emt 0:00:07]} f5 $2 {[%emt 0:02:10]} (36... Kf5 $19 {is more deadly. And now ...Rc2 would win.} 37. f3 Rc2+ 38. Kh3 Ra2) 37. b6 $17 {[%emt 0:02:47]} axb6 {[%emt 0:00:06]} 38. axb6 {[%emt 0:00:06]} Bxb6 {[%emt 0:04:11] White must now prevent ...Rc2.} 39. Bxe5 $2 {[%emt 0:01:06][%mdl 8192] Loses the game.} (39. f3+ $17 Kh5 40. Bxe5) 39... Rc2 $19 {[%emt 0:00:09]} 40. Bg3 {[%emt 0:02:23]} f4 {[%emt 0:00:03] Black mates.} 41. Rb7 {[%emt 0:00:08]} Bc5 {[%emt 0:00:05]} 42. Bxf4 {[%emt 0:00:31]} Rxf2+ {[%emt 0:00:04]} 43. Kh1 {[%emt 0:00:04]} gxf4 {[%emt 0:00:26] KRB-KR} 44. Rd7 {[%emt 0:00:39]} Bf8 {[%emt 0:00:38]} 45. Rf7 {[%emt 0:00:30]} Bh6 {[%emt 0:00:02]} 46. Rf6 {[%emt 0:00:14]} Bg5 {[%emt 0:00:01]} 47. Rg6 {[%emt 0:00:02]} Ra2 {[%emt 0:00:02]} 48. Rg8 {[%emt 0:00:05]} f3 {[%emt 0:00:03]} 49. Kg1 {[%emt 0:00:07]} Kf4 {[%emt 0:00:09]} 50. Kf1 {[%emt 0:00:22]} Ra1+ {[%emt 0:00:02]} 51. Kf2 {[%emt 0:00:01]} Bh4+ {[%emt 0:00:03] Weighted Error Value: White=0.33/Black=0.18 (very precise)} 0-1

[Event "Slovakia Open 2022"]
[Site "Bratislava"]
[Date "2022.09.30"]
[Round "2.15"]
[White "Kostolansky, Sebastian Lukas"]
[Black "Krajnak, Robert"]
[Result "1-0"]
[ECO "B54"]
[WhiteElo "2398"]
[BlackElo "1931"]
[Annotator "TA"]
[PlyCount "53"]
[EventDate "2022.09.30"]
[EventCountry "SVK"]
[SourceTitle "playchess.com"]
[Source "ChessBase"]
[SourceQuality "1"]
[TimeControl "2700+10"]

{[%evp 10,53,35,22,55,41,76,65,68,61,72,69,166,60,90,91,126,124,131,139,167,171,170,172,227,241,294,241,493,501,614,516,589,434,1229,1198,1198,1192,1891,1888,1696,1685,29991,29992,29992,29993]} 1. e4 {[%emt 0:00:05]} c5 {[%emt 0:01:02]} 2. Nf3 {[%emt 0:00:04]} e6 {[%emt 0:00:02]} 3. d4 {[%emt 0:02:45]} cxd4 {[%emt 0:00:40]} 4. Nxd4 {[%emt 0:00:02]} Nc6 {[%emt 0:00:02]} 5. Nc3 {[%emt 0:00:03]} d6 {[%emt 0:00:02]} 6. g4 {[%emt 0:03:37]} Nge7 {[%emt 0:01:18] B54: Sicilian: 2...d6 3 d4 cxd4 4 Nxd4, Unusual Lines .} 7. Be3 {[%emt 0:01:12]} Nxd4 {[%emt 0:05:16]} 8. Qxd4 {[%emt 0:00:12]} Nc6 {[%emt 0:00:04] White is slightly better.} 9. Qd2 {[%emt 0:00:53] White has more active pieces. The black rooks are badly placed.} Be7 {[%emt 0:00:34]} 10. O-O-O {[%emt 0:02:20]} b5 {[%emt 0:02:18]} (10... O-O $14) 11. g5 {[%emt 0:03:06]} (11. Bxb5 $18 Bb7 12. f4) 11... a6 {[%emt 0:00:10]} 12. Kb1 {[%emt 0:01:33]} b4 {[%emt 0:02:16] [#]} 13. Na4 {[%emt 0:02:53]} Rb8 {[%emt 0:04:17]} 14. f4 {[%emt 0:04:51] Against Ne5} Qa5 {[%emt 0:04:51]} 15. b3 {[%emt 0:00:52]} O-O {[%emt 0:01:49]} 16. h4 {[%emt 0:06:06][%cal Bh2h4,Bh4h5][%mdl 32] [#]} Bd7 $146 {[%emt 0:00:44]} (16... Qc7 $142 17. c4 Qa5) ({Predecessor:} 16... d5 17. exd5 exd5 18. Bd3 Bg4 19. Rdg1 Bf3 20. Rh3 Be4 21. f5 Rfe8 22. f6 Bxd3 23. Qxd3 {1-0 (31) Lobron,E (2620)-Schulz,K (2415) Germany 1993}) 17. h5 $18 {[%emt 0:02:57]} Rfc8 {[%emt 0:03:39]} 18. Qf2 {[%emt 0:03:20]} Bd8 $2 {[%emt 0:07:01]} (18... Be8 {was called for.} 19. h6 g6) 19. g6 {[%emt 0:01:32]} ({Weaker is} 19. Rxd6 Be8 20. h6 g6 $18) 19... Ne7 {[%emt 0:01:06]} 20. gxf7+ {[%emt 0:01:12]} Kf8 {[%emt 0:01:24]} 21. Nc5 {[%emt 0:00:59]} Bc6 {[%emt 0:02:26]} (21... Rxc5 $142 22. Bxc5 Qxc5 23. Qxc5 dxc5 24. Rxd7 Nc6 25. Bxa6 Nd4) 22. Nxe6+ {[%emt 0:00:07]} Kxf7 {[%emt 0:00:03]} 23. Rxd6 {[%emt 0:03:49]} Bc7 {[%emt 0:01:38] [#]} 24. Rxc6 $1 {[%emt 0:00:30]} Nxc6 {[%emt 0:00:05]} 25. Bc4 {[%emt 0:00:02] A strong pair of Bishops.} Ke7 {[%emt 0:02:11]} 26. Qh4+ {[%emt 0:00:08]} g5 {[%emt 0:00:36]} 27. hxg6+ {[%emt 0:00:02] Weighted Error Value: White=0.24 (precise) /Black=0.88} 1-0

[Event "Slovakia Open 2022"]
[Site "Bratislava"]
[Date "2022.09.30"]
[Round "2.16"]
[White "Nemsak, Denis"]
[Black "Novosadova, Kristyna"]
[Result "1-0"]
[ECO "A26"]
[WhiteElo "2012"]
[BlackElo "2151"]
[Annotator "TA"]
[PlyCount "39"]
[EventDate "2022.09.30"]
[EventCountry "SVK"]
[SourceTitle "playchess.com"]
[Source "ChessBase"]
[SourceQuality "1"]
[TimeControl "2700+10"]

{[%evp 14,39,13,25,27,-8,61,0,46,52,232,221,283,276,301,273,795,806,1483,1443,29990,29991,29991,29992,29995,29996,29996,29997]} 1. c4 {[%emt 0:00:05]} e5 {[%emt 0:00:03]} 2. Nc3 {[%emt 0:00:02]} Nc6 {[%emt 0:00:07]} 3. g3 {[%emt 0:00:03]} g6 {[%emt 0:00:13]} 4. Bg2 {[%emt 0:00:02]} Bg7 {[%emt 0:00:02]} 5. e4 {[%emt 0:00:03]} d6 {[%emt 0:00:17]} 6. Nge2 {[%emt 0:00:06]} Be6 {[%emt 0:00:10]} 7. d3 {[%emt 0:00:03]} Qd7 {[%emt 0:00:19]} 8. O-O {[%emt 0:00:07]} h5 {[%emt 0:00:28] has lost popularity (8...Bh3). A26: English Opening vs King's Indian with ...Nc6 and d3.} 9. Nd5 {[%emt 0:00:42]} O-O-O {[%emt 0:02:02]} (9... h4 $11) 10. b4 {[%emt 0:01:00]} (10. h4 $1 $14) 10... Bh3 {[%emt 0:00:15]} ({Don't play} 10... Bxd5 11. cxd5 Nce7 12. h4 $14) (10... h4 $11) 11. b5 $14 {[%emt 0:00:18] [#]} Nd4 $146 {[%emt 0:00:17] Black cannot hold the game after this.} (11... Nce7 $14) ({Predecessor:} 11... Nce7 12. a4 h4 13. f3 hxg3 14. Nxg3 Bxg2 15. Kxg2 Qh3+ {0-1 (15) Kreuchauf,O-Guenther,L freechess.de 2019}) 12. Nxd4 $18 {[%emt 0:04:58][%cal Od1a4] And now Qa4! would win.} exd4 {[%emt 0:00:03] [#]} 13. Qa4 $1 {[%emt 0:00:57]} Kb8 {[%emt 0:00:09] [#]} 14. c5 $1 {[%emt 0:01:25]} dxc5 {[%emt 0:01:14]} (14... Bxg2 15. Kxg2 h4) 15. Bf4 {[%emt 0:00:20]} Rc8 {[%emt 0:05:18]} 16. Bxh3 {[%emt 0:01:38]} Qxh3 {[%emt 0:00:17]} 17. b6 {[%emt 0:00:02][%csl Gb6][%cal Ra4a7] White mates.} a6 {[%emt 0:02:19]} 18. Nxc7 {[%emt 0:00:41][%cal Bd5c7,Bc7a6,Ba6c5][%mdl 32]} Rd8 {[%emt 0:01:15]} 19. Nxa6+ {[%emt 0:00:40]} Kc8 {[%emt 0:00:04]} 20. Nxc5 {[%emt 0:00:06] Weighted Error Value: White=0.07 (flawless) /Black=0.95} 1-0

[Event "Slovakia Open 2022"]
[Site "Bratislava"]
[Date "2022.09.30"]
[Round "2.17"]
[White "Rakhmangulova, Anastasiya"]
[Black "Nikpour Aryabod"]
[Result "1-0"]
[ECO "B13"]
[WhiteElo "2244"]
[BlackElo "1000"]
[Annotator "TA"]
[PlyCount "83"]
[EventDate "2022.09.30"]
[EventCountry "SVK"]
[SourceTitle "playchess.com"]
[Source "ChessBase"]
[SourceQuality "1"]
[TimeControl "2700+10"]

{[%evp 20,83,52,56,55,43,45,25,32,22,42,42,50,33,46,46,48,45,50,48,51,43,50,50,81,77,889,880,810,228,320,325,325,314,318,311,311,266,322,320,316,265,302,289,407,404,371,371,387,366,477,445,29973,29974,29973,29970,29975,29973,29982,29982,29985,29986,29986,29987,29987,29988]} 1. e4 {[%emt 0:00:04]} c6 {[%emt 0:00:02]} 2. d4 {[%emt 0:00:06]} d5 {[%emt 0:00:02]} 3. exd5 {[%emt 0:00:10]} cxd5 {[%emt 0:00:03]} 4. Bd3 {[%emt 0:00:01]} Nc6 {[%emt 0:00:03]} 5. c3 {[%emt 0:00:01]} Nf6 {[%emt 0:00:03]} 6. Bf4 {[%emt 0:00:02]} Bg4 {[%emt 0:00:04]} 7. Qb3 {[%emt 0:00:02]} Qd7 {[%emt 0:00:13]} 8. Nd2 {[%emt 0:00:03]} e6 {[%emt 0:00:08]} 9. Ngf3 {[%emt 0:00:02]} Bxf3 {[%emt 0:00:18]} 10. Nxf3 {[%emt 0:00:03]} a6 {[%emt 0:00:11]} 11. O-O {[%emt 0:00:52]} Be7 {[%emt 0:00:16] B13: Caro-Kann: Exchange Variation and Panov-Botvinnik Attack.} 12. h3 {[%emt 0:00:06]} O-O {[%emt 0:00:06]} 13. a4 {[%emt 0:00:05] [#]} Rac8 $146 {[%emt 0:01:04] White has an edge.} ({Predecessor:} 13... Na5 14. Qd1 Rac8 15. Ne5 Qd8 16. Re1 Nc4 17. Nxc4 dxc4 18. Bc2 Nd5 19. Be5 Bg5 {1-0 (46) Lumachi,G (2237)-Bevilacqua,M (2074) Verona 2019}) 14. a5 {[%emt 0:01:17]} h6 {[%emt 0:02:33]} 15. Rfe1 {[%emt 0:03:37]} Rfd8 {[%emt 0:03:21]} 16. Ne5 {[%emt 0:01:40]} Nxe5 {[%emt 0:01:16]} 17. Bxe5 {[%emt 0:00:02]} Ne8 {[%emt 0:00:55]} 18. Bb1 {[%emt 0:00:16]} g6 {[%emt 0:01:27]} 19. Qd1 {[%emt 0:00:33]} Bd6 {[%emt 0:01:03]} 20. Qd2 {[%emt 0:02:16]} Kh7 {[%emt 0:01:51]} 21. h4 {[%emt 0:00:04]} Bxe5 {[%emt 0:00:56]} 22. Rxe5 $40 {[%emt 0:00:47][%mdl 128] Strongly threatening Rh5. White is out for blood.} Nd6 $2 {[%emt 0:02:24][%mdl 8192] Black cannot hold the game after this.} (22... f6 $16 23. Re3 (23. Rh5 $2 Qg7 $19) 23... Ng7) 23. Rh5 $1 $18 {[%emt 0:00:47]} Kg8 {[%emt 0:06:58] [#]} 24. Rxh6 $2 {[%emt 0:00:27]} (24. Qxh6 $1 {[%csl Gh5][%cal Rh6h8]} gxh5 25. Bh7+ Kh8 26. Re1) 24... Nf5 {[%emt 0:02:11]} (24... Kg7 {was necessary.} 25. Bxg6 fxg6) 25. Bxf5 {[%emt 0:06:08]} exf5 {[%emt 0:00:25]} 26. h5 {[%emt 0:00:15]} Rc6 {[%emt 0:01:19]} 27. hxg6 {[%emt 0:01:14]} Rxg6 {[%emt 0:00:28]} 28. Re1 {[%emt 0:03:10]} Kg7 {[%emt 0:02:11]} 29. Rxg6+ {[%emt 0:00:41]} fxg6 {[%emt 0:00:28][%mdl 4096] Endgame KQR-KQR} 30. Re3 {[%emt 0:01:43]} Rh8 {[%emt 0:00:55]} 31. Re5 {[%emt 0:00:15]} Re8 {[%emt 0:01:10]} (31... Kf7 $142 32. Qe3 Qd8) 32. Qe3 {[%emt 0:00:26]} Rxe5 {[%emt 0:01:03]} 33. dxe5 {[%emt 0:00:23] Hoping for e6. KQ-KQ} ({Less strong is} 33. Qxe5+ Kf7 34. g3 Qd8 $16) 33... Qe6 {[%emt 0:01:01]} 34. f4 {[%emt 0:00:10]} Kf7 {[%emt 0:00:33]} 35. Qb6 {[%emt 0:00:57]} Qxb6+ {[%emt 0:00:43]} (35... Qe7 $18 36. g3 g5) 36. axb6 {[%emt 0:00:01] KP-KP. White mates.} Ke6 {[%emt 0:00:02]} 37. Kf2 {[%emt 0:00:02]} g5 {[%emt 0:00:07]} 38. g3 {[%emt 0:00:01]} g4 {[%emt 0:00:04]} 39. Ke3 {[%emt 0:00:03]} a5 {[%emt 0:00:05]} 40. Kd4 {[%emt 0:00:21]} a4 {[%emt 0:00:11]} 41. Kc5 {[%emt 0:00:02]} a3 {[%emt 0:02:28]} 42. bxa3 {[%emt 0:00:01] Weighted Error Value: White=0.25 (precise) /Black=0.34} 1-0